fUSD/lending_fUSD_20241224
["ID","MTS","AMOUNT","RATE_DAILY","PERIOD"]
[346499272,1735009272601,617.42,0.00014967,2]
[346499273,1735009275979,500.0,0.00013698,2]
[346499274,1735009276236,500.0,0.00013972,2]
[346499275,1735009276503,500.0,0.00014246,2]
[346499276,1735009276777,456.7965892,0.0001452,2]
[346499277,1735009279370,500.0,0.00013698,2]
[346499278,1735009279651,500.0,0.00013972,2]
[346499279,1735009282404,500.0,0.00014246,2]
[346499280,1735009282712,500.0,0.0001452,2]
[346499281,1735009282981,500.0,0.00014794,2]
[346499282,1735009287060,500.0,0.00013698,2]
[346499283,1735009287327,500.0,0.00013972,2]
[346499284,1735009287555,500.0,0.00014246,2]
[346499285,1735009287791,500.0,0.0001452,2]
[346499286,1735009287859,1111.5,0.00014419,2]
[346499287,1735009288033,500.0,0.00014794,2]
[346499288,1735009288127,1111.5,0.00014693,2]
[346499289,1735009288414,1111.5,0.00014967,2]
[346499290,1735009290052,1899.0,0.00014078,2]
[346499291,1735009290723,500.0,0.00013698,2]
[346499292,1735009291065,500.0,0.00013972,2]
[346499293,1735009291463,500.0,0.00014246,2]
[346499294,1735009291602,500.0,0.0001452,2]
[346499295,1735009291870,500.0,0.00014794,2]
[346499296,1735009296249,906.53,0.00014419,2]
[346499297,1735009296505,906.53,0.00014693,2]
[346499298,1735009296776,906.53,0.00014967,2]
[346499299,1735009299153,1402.91,0.00014516,2]
[346499300,1735009302285,1256.0,0.00014078,2]
[346499301,1735009306524,500.0,0.00013698,2]
[346499302,1735009306803,500.0,0.00013972,2]
[346499303,1735009307454,500.0,0.00014246,2]
[346499304,1735009307736,500.0,0.0001452,2]
[346499305,1735009307815,500.0,0.00013698,2]
[346499306,1735009308034,500.0,0.00014794,2]
[346499307,1735009308106,500.0,0.00013972,2]
[346499308,1735009308382,500.0,0.00014246,2]
[346499309,1735009308523,3771.0,0.00014078,2]
[346499310,1735009308642,500.0,0.0001452,2]
[346499311,1735009308922,500.0,0.00014794,2]
[346499312,1735009313415,924.0,0.00014078,2]
[346499313,1735009318493,818.0,0.00014078,2]
[346499314,1735009320375,500.0,0.00013698,2]
[346499315,1735009320661,500.0,0.00013972,2]
[346499316,1735009320967,500.0,0.00014246,2]
[346499317,1735009321231,500.0,0.0001452,2]
[346499318,1735009321533,500.0,0.00014794,2]
[346499319,1735009321880,500.0,0.00013698,2]
[346499320,1735009322139,500.0,0.00013972,2]
[346499321,1735009322585,500.0,0.00014246,2]
[346499322,1735009328116,500.0,0.0001452,2]
[346499323,1735009328375,500.0,0.00014794,2]
[346499324,1735009329492,500.0,0.00013698,2]
[346499325,1735009329779,500.0,0.00013972,2]
[346499326,1735009330026,500.0,0.00014246,2]
[346499327,1735009330555,500.0,0.0001452,2]
[346499328,1735009330901,500.0,0.00014794,2]
[346499329,1735009333182,500.0,0.00013698,2]
[346499330,1735009333544,162.00800446,0.00013972,2]
[346499331,1735009333620,536.0,0.00014078,2]
[346499332,1735009337234,500.0,0.00013698,2]
[346499333,1735009337518,500.0,0.00013972,2]
[346499334,1735009337852,500.0,0.00014246,2]
[346499335,1735009337973,3683.0,0.00014078,2]
[346499336,1735009338076,500.0,0.0001452,2]
[346499337,1735009338313,500.0,0.00014794,2]
[346499338,1735009341661,793.54,0.00014419,2]
[346499339,1735009341916,793.54,0.00014693,2]
[346499340,1735009342222,793.54,0.00014967,2]
[346499341,1735009345473,500.0,0.00013698,2]
[346499342,1735009345576,500.0,0.00013972,2]
[346499343,1735009345682,500.0,0.00014246,2]
[346499344,1735009345951,500.0,0.0001452,2]
[346499345,1735009346204,500.0,0.00014794,2]
[346499346,1735009350517,5508.62,0.00014419,2]
[346499347,1735009350793,5508.62,0.00014693,2]
[346499348,1735009351116,5508.62,0.00014967,2]
[346499349,1735009358824,500.0,0.00014419,2]
[346499350,1735009359073,500.0,0.00014693,2]
[346499351,1735009359318,500.0,0.00014967,2]
[346499352,1735009362995,953.25,0.00014419,2]
[346499353,1735009363294,953.25,0.00014693,2]
[346499354,1735009363549,953.25,0.00014967,2]
[346499355,1735009364614,500.0,0.00013698,2]
[346499356,1735009364910,500.0,0.00013972,2]
[346499357,1735009365190,500.0,0.00014246,2]
[346499358,1735009365433,500.0,0.0001452,2]
[346499359,1735009365812,500.0,0.00014794,2]
[346499360,1735009369534,500.0,0.00013698,2]
[346499361,1735009369811,500.0,0.00013972,2]
[346499362,1735009370460,500.0,0.00014246,2]
[346499363,1735009370737,500.0,0.0001452,2]
[346499364,1735009371157,500.0,0.00014794,2]
[346499365,1735009372046,500.0,0.00013698,2]
[346499366,1735009372322,500.0,0.00013972,2]
[346499367,1735009372567,500.0,0.00014246,2]
[346499368,1735009372897,500.0,0.0001452,2]
[346499369,1735009373162,500.0,0.00014794,2]
[346499370,1735009376796,545.7,0.00014419,2]
[346499371,1735009377052,545.7,0.00014693,2]
[346499372,1735009377356,545.7,0.00014967,2]
[346499373,1735009379909,500.0,0.00013698,2]
[346499374,1735009387387,500.0,0.00014419,2]
[346499375,1735009387637,500.0,0.00014693,2]
[346499376,1735009387906,500.0,0.00014967,2]
[346499377,1735009396134,500.0,0.00013698,2]
[346499378,1735009396203,1259.68,0.00014419,2]
[346499379,1735009396407,500.0,0.00013972,2]
[346499380,1735009396478,1259.68,0.00014693,2]
[346499381,1735009396673,500.0,0.00014246,2]
[346499382,1735009396772,1259.68,0.00014967,2]
[346499383,1735009396951,500.0,0.0001452,2]
[346499384,1735009397205,500.0,0.00014794,2]
[346499385,1735009403254,708.5438,0.00014967,2]
[346499386,1735009405000,500.0,0.00014419,2]
[346499387,1735009405484,500.0,0.00014693,2]
[346499388,1735009405967,500.0,0.00014967,2]
[346499389,1735009406062,500.0,0.00013698,2]
[346499390,1735009406139,500.0,0.00013972,2]
[346499391,1735009406401,500.0,0.00014246,2]
[346499392,1735009406670,500.0,0.0001452,2]
[346499393,1735009406938,500.0,0.00014794,2]
[346499394,1735009409776,500.0,0.00013698,2]
[346499395,1735009410278,500.0,0.00014923,2]
[346499396,1735009410678,219.2241,0.00014967,2]
[346499397,1735009413595,500.0,0.00014419,2]
[346499398,1735009413893,500.0,0.00014693,2]
[346499399,1735009414194,500.0,0.00014967,2]
[346499400,1735009414515,500.0,0.00013698,2]
[346499401,1735009414805,500.0,0.00013972,2]
[346499402,1735009415084,500.0,0.00014246,2]
[346499403,1735009415335,500.0,0.0001452,2]
[346499404,1735009415874,500.0,0.00014794,2]
[346499405,1735009417047,1000.0,0.00014419,2]
[346499406,1735009417360,1000.0,0.00014693,2]
[346499407,1735009417722,500.0,0.00013698,2]
[346499408,1735009417809,1000.0,0.00014967,2]
[346499409,1735009418050,500.0,0.00013972,2]
[346499410,1735009418327,500.0,0.00014246,2]
[346499411,1735009418645,500.0,0.0001452,2]
[346499412,1735009418892,500.0,0.00014794,2]
[346499413,1735009422198,528.47,0.00014419,2]
[346499414,1735009422473,528.47,0.00014693,2]
[346499415,1735009422726,528.47,0.00014967,2]
[346499416,1735009430018,500.0,0.00013698,2]
[346499417,1735009430297,500.0,0.00013972,2]
[346499418,1735009430466,500.0,0.00014419,2]
[346499419,1735009430618,500.0,0.00014246,2]
[346499420,1735009430739,500.0,0.00014693,2]
[346499421,1735009430810,679.12,0.00013698,2]
[346499422,1735009430863,500.0,0.0001452,2]
[346499423,1735009431006,500.0,0.00014967,2]
[346499424,1735009431099,500.0,0.00014794,2]
[346499425,1735009431154,679.12,0.00013972,2]
[346499426,1735009431410,679.12,0.00014246,2]
[346499427,1735009431628,679.12,0.0001452,2]
[346499428,1735009431887,679.12,0.00014794,2]
[346499429,1735009434924,500.0,0.00013698,2]
[346499430,1735009435204,500.0,0.00013972,2]
[346499431,1735009435464,500.0,0.00014246,2]
[346499432,1735009435712,500.0,0.0001452,2]
[346499433,1735009435989,500.0,0.00014794,2]
[346499434,1735009439541,500.0,0.00013698,2]
[346499435,1735009439776,500.0,0.00013972,2]
[346499436,1735009439990,1357.63,0.00014419,2]
[346499437,1735009440060,500.0,0.00014246,2]
[346499438,1735009440274,1357.63,0.00014693,2]
[346499439,1735009440365,500.0,0.0001452,2]
[346499440,1735009440521,1357.63,0.00014967,2]
[346499441,1735009440599,500.0,0.00014794,2]
[346499442,1735009440856,638.929,0.0001457,2]
[346499443,1735009450351,500.0,0.00013698,2]
[346499444,1735009450612,500.0,0.00013972,2]
[346499445,1735009450948,500.0,0.00014246,2]
[346499446,1735009451015,500.0,0.00013698,2]
[346499447,1735009451198,500.0,0.0001452,2]
[346499448,1735009451285,500.0,0.00013972,2]
[346499449,1735009451458,407.74510365,0.00014794,2]
[346499450,1735009451564,500.0,0.00014246,2]
[346499451,1735009451879,500.0,0.0001452,2]
[346499452,1735009452156,500.0,0.00014794,2]
[346499453,1735009460611,665.73,0.00013698,2]
[346499454,1735009460849,665.73,0.00013972,2]
[346499455,1735009461109,665.73,0.00014246,2]
[346499456,1735009461353,665.73,0.0001452,2]
[346499457,1735009461973,618.11,0.00013698,2]
[346499458,1735009462319,618.11,0.00013972,2]
[346499459,1735009462586,618.11,0.00014246,2]
[346499460,1735009462930,618.11,0.0001452,2]
[346499461,1735009464092,1026.16,0.00014419,2]
[346499462,1735009464175,1026.16,0.00014693,2]
[346499463,1735009464282,1026.16,0.00014967,2]
[346499464,1735009464702,500.0,0.00013698,2]
[346499465,1735009464818,3474.16630065,0.00014967,2]
[346499466,1735009464949,500.0,0.00013972,2]
[346499467,1735009465953,665.73,0.00014794,2]
[346499468,1735009466027,618.11,0.00014794,2]
[346499469,1735009467917,540.75873415,0.00014246,2]
[346499470,1735009475508,500.0,0.00013698,2]
[346499471,1735009475765,500.0,0.00013972,2]
[346499472,1735009476048,500.0,0.00014246,2]
[346499473,1735009476354,500.0,0.0001452,2]
[346499474,1735009476605,500.0,0.00014794,2]
[346499475,1735009481868,500.0,0.00013698,2]
[346499476,1735009482156,500.0,0.00013972,2]
[346499477,1735009482395,500.0,0.00014246,2]
[346499478,1735009482649,500.0,0.0001452,2]
[346499479,1735009482890,500.0,0.00014794,2]
[346499480,1735009483549,500.0,0.00013698,2]
[346499481,1735009484155,500.0,0.00013972,2]
[346499482,1735009484402,500.0,0.00014246,2]
[346499483,1735009484651,500.0,0.0001452,2]
[346499484,1735009484902,500.0,0.00014794,2]
[346499485,1735009487693,500.0,0.00013698,2]
[346499486,1735009487971,500.0,0.00013972,2]
[346499487,1735009488344,500.0,0.00014246,2]
[346499488,1735009488768,500.0,0.0001452,2]
[346499489,1735009488871,500.0,0.00014794,2]
[346499490,1735009493080,500.0,0.00013698,2]
[346499491,1735009493340,500.0,0.00013972,2]
[346499492,1735009493598,500.0,0.00014246,2]
[346499493,1735009493872,500.0,0.0001452,2]
[346499494,1735009494110,500.0,0.00014794,2]
[346499495,1735009499621,500.0,0.00013698,2]
[346499496,1735009500230,500.0,0.00013972,2]
[346499497,1735009500487,500.0,0.00014246,2]
[346499498,1735009500754,500.0,0.0001452,2]
[346499499,1735009501026,500.0,0.00014794,2]
[346499500,1735009501440,500.0,0.00013698,2]
[346499501,1735009501730,500.0,0.00013972,2]
[346499502,1735009502142,500.0,0.00014246,2]
[346499503,1735009502395,500.0,0.0001452,2]
[346499504,1735009502655,500.0,0.00014794,2]
[346499505,1735009509495,500.0,0.00013698,2]
[346499506,1735009509596,500.0,0.00013972,2]
[346499507,1735009509704,500.0,0.00014246,2]
[346499508,1735009509967,326.71682944,0.0001452,2]
[346499509,1735009510396,500.0,0.00013698,2]
[346499510,1735009511591,500.0,0.00013972,2]
[346499511,1735009511696,500.0,0.00014246,2]
[346499512,1735009511784,500.0,0.0001452,2]
[346499513,1735009511894,500.0,0.00014794,2]
[346499514,1735009517215,500.0,0.00013698,2]
[346499515,1735009517466,500.0,0.00013972,2]
[346499516,1735009517710,500.0,0.00014246,2]
[346499517,1735009517965,500.0,0.0001452,2]
[346499518,1735009518230,500.0,0.00014794,2]
[346499519,1735009529367,500.0,0.00013698,2]
[346499520,1735009529614,500.0,0.00013972,2]
[346499521,1735009530193,500.0,0.00014246,2]
[346499522,1735009530345,500.0,0.0001452,2]
[346499523,1735009530506,500.0,0.00014794,2]
[346499524,1735009531297,500.0,0.00013698,2]
[346499525,1735009531552,500.0,0.00013972,2]
[346499526,1735009532032,500.0,0.00014246,2]
[346499527,1735009532159,500.0,0.0001452,2]
[346499528,1735009532720,500.0,0.00014794,2]
[346499529,1735009544028,5210.0,0.00015,2]
[346499530,1735009544653,4689.0,0.00015,2]
[346499531,1735009549479,792.38,0.00013698,2]
[346499532,1735009549744,792.38,0.00013972,2]
[346499533,1735009550016,792.38,0.00014246,2]
[346499534,1735009550321,792.38,0.0001452,2]
[346499535,1735009550870,792.38,0.00014794,2]
[346499536,1735009560094,598.67,0.00013698,2]
[346499537,1735009560294,598.67,0.00013972,2]
[346499538,1735009564978,598.67,0.00014246,2]
[346499539,1735009565225,598.67,0.0001452,2]
[346499540,1735009565521,598.67,0.00014794,2]
[346499541,1735009572797,893.66,0.00013698,2]
[346499542,1735009573077,893.66,0.00013972,2]
[346499543,1735009573351,893.66,0.00014246,2]
[346499544,1735009573591,893.66,0.0001452,2]
[346499545,1735009573850,893.66,0.00014794,2]
[346499546,1735009577026,500.0,0.00013698,2]
[346499547,1735009577270,500.0,0.00013972,2]
[346499548,1735009577555,500.0,0.00014246,2]
[346499549,1735009577815,500.0,0.0001452,2]
[346499550,1735009578076,500.0,0.00014794,2]
[346499552,1735009589500,500.0,0.00013698,2]
[346499553,1735009590045,500.0,0.00013972,2]
[346499554,1735009590312,383.3605685,0.00014246,2]
[346499555,1735009596359,1500.0,0.0001491,2]
[346499556,1735009597692,553.42,0.00012484,2]
[346499557,1735009597890,553.42,0.00014748,2]
[346499558,1735009600806,500.0,0.00013698,2]
[346499559,1735009601098,500.0,0.00013972,2]
[346499560,1735009601356,500.0,0.00014246,2]
[346499561,1735009601605,500.0,0.0001452,2]
[346499562,1735009601838,500.0,0.00014794,2]
[346499563,1735009605606,500.0,0.00013698,2]
[346499564,1735009605846,500.0,0.00013972,2]
[346499565,1735009606111,500.0,0.00014246,2]
[346499566,1735009606375,499.67409262,0.0001452,2]
[346499567,1735009613337,647.06,0.00013698,2]
[346499568,1735009613613,647.06,0.00013972,2]
[346499569,1735009613911,647.06,0.00014246,2]
[346499570,1735009614178,647.06,0.0001452,2]
[346499571,1735009614415,647.06,0.00014794,2]
[346499572,1735009618109,-427.43040315,0.00015016,2]
[346499573,1735009620736,200.0,0.000149,5]
[346499574,1735009621718,1503.20903625,0.00014967,2]
[346499575,1735009621775,500.0,0.00013698,2]
[346499576,1735009622052,500.0,0.00013972,2]
[346499577,1735009622317,500.0,0.00014246,2]
[346499578,1735009622561,500.0,0.0001452,2]
[346499579,1735009623359,500.0,0.00014794,2]
[346499580,1735009629365,500.0,0.00013698,2]
[346499581,1735009630038,500.0,0.00013972,2]
[346499582,1735009630276,500.0,0.00014246,2]
[346499583,1735009630543,500.0,0.0001452,2]
[346499584,1735009630840,500.0,0.00014794,2]
[346499585,1735009643451,1000.0,0.00014316,2]
[346499586,1735009645666,500.0,0.00013698,2]
[346499587,1735009645884,500.0,0.00013972,2]
[346499588,1735009646213,500.0,0.00014246,2]
[346499589,1735009646492,272.0385598,0.0001452,2]
[346499590,1735009653129,500.0,0.00013698,2]
[346499591,1735009653427,500.0,0.00013972,2]
[346499592,1735009653700,500.0,0.00014246,2]
[346499593,1735009653954,500.0,0.0001452,2]
[346499594,1735009654211,500.0,0.00014794,2]
[346499595,1735009662175,500.0,0.00013698,2]
[346499596,1735009662469,500.0,0.00013972,2]
[346499597,1735009662852,500.0,0.00014246,2]
[346499598,1735009663100,500.0,0.0001452,2]
[346499599,1735009663378,500.0,0.00014794,2]
[346499600,1735009682587,500.0,0.00013698,2]
[346499601,1735009682869,500.0,0.00013972,2]
[346499602,1735009687495,500.0,0.00014246,2]
[346499603,1735009687782,500.0,0.0001452,2]
[346499604,1735009688109,500.0,0.00014794,2]
[346499605,1735009716414,1500.0,0.00014905,2]
[346499606,1735009733418,150.0,0.00014994,2]
[346499607,1735009733664,150.0,0.00014975,2]
[346499608,1735009733971,150.0,0.00014977,2]
[346499609,1735009734101,150.0,0.00014997,2]
[346499610,1735009734250,150.0,0.00014973,2]
[346499611,1735009734385,150.0,0.00014976,2]
[346499612,1735009734490,150.0,0.00014976,2]
[346499613,1735009734561,150.0,0.00014993,2]
[346499614,1735009734631,150.0,0.00014998,2]
[346499615,1735009734686,150.0,0.00014997,2]
[346499616,1735009734739,150.0,0.00014968,2]
[346499617,1735009734919,150.0,0.00014974,2]
[346499618,1735009734976,150.0,0.00014992,2]
[346499619,1735009735200,150.0,0.00015,2]
[346499620,1735009735262,150.0,0.00014995,2]
[346499621,1735009735341,150.0,0.00014993,2]
[346499622,1735009735405,150.0,0.0001499,2]
[346499623,1735009750668,20001.19645,0.00015,2]
[346499624,1735009781932,318.22459832,0.00014968,2]
[346499625,1735009805740,301.76,0.000149,3]
[346499626,1735009814903,3888.0,0.00014083,2]
[346499627,1735009819137,150.0,0.00014083,2]
[346499629,1735009832053,-150.0,0.00015003,2]
[346499631,1735009832063,-150.0,0.00015004,2]
[346499634,1735009832073,-150.0,0.00015005,2]
[346499636,1735009832083,-150.0,0.00015009,2]
[346499639,1735009832093,-150.0,0.00015009,2]
[346499641,1735009832102,-150.0,0.00015009,2]
[346499643,1735009832116,-150.0,0.0001501,2]
[346499645,1735009832127,-150.0,0.00015013,2]
[346499647,1735009832137,-1072.56959685,0.00015016,2]
[346499649,1735009832146,-150.0,0.00015022,2]
[346499650,1735009832158,-150.0,0.00015026,2]
[346499651,1735009832167,-150.0,0.00015027,2]
[346499652,1735009832177,-150.0,0.00015031,2]
[346499653,1735009832188,-66.95040315,0.00015031,2]
[346499654,1735009832200,-83.04959685,0.00015031,2]
[346499655,1735009832209,-150.0,0.00015032,2]
[346499656,1735009832218,-150.0,0.00015033,2]
[346499657,1735009832228,-150.0,0.00015034,2]
[346499658,1735009832236,-150.0,0.00015036,2]
[346499659,1735009832246,-150.0,0.00015041,2]
[346499660,1735009832256,-150.0,0.00015042,2]
[346499661,1735009832266,-150.0,0.00015042,2]
[346499662,1735009832275,-163.6521949,0.00015042,2]
[346499663,1735009832285,-150.0,0.00015043,2]
[346499664,1735009832295,-150.0,0.00015048,2]
[346499665,1735009832304,-150.0,0.00015049,2]
[346499666,1735009832314,-150.0,0.00015051,2]
[346499667,1735009832324,-150.0,0.00015052,2]
[346499668,1735009832333,-150.0,0.00015056,2]
[346499669,1735009832342,-150.0,0.00015062,2]
[346499670,1735009832352,-150.0,0.00015064,2]
[346499671,1735009832362,-300.0,0.00015064,2]
[346499672,1735009832371,-2718.676,0.00015066,2]
[346499673,1735009832380,-166.228,0.00015066,2]
[346499674,1735009832389,-1212.08,0.00015066,2]
[346499675,1735009832399,-1115.77,0.00015066,2]
[346499676,1735009832408,-500.0,0.00015066,2]
[346499677,1735009832418,-1422.91184316,0.00015066,2]
[346499678,1735009832430,-1936.81815684,0.00015066,2]
[346499679,1735009832440,-751.79,0.00015066,2]
[346499680,1735009832449,-1924.51,0.00015066,2]
[346499681,1735009832458,-500.0,0.00015066,2]
[346499682,1735009832467,-2582.98,0.00015066,2]
[346499683,1735009832476,-82.5196677,0.00015066,2]
[346499684,1735009832554,150.0,0.00014977,2]
[346499685,1735009832585,-150.0,0.00015055,2]
[346499687,1735009832594,-304.92529219,0.00015066,2]
[346499689,1735009832606,-5094.09504011,0.00015066,2]
[346499690,1735009832615,-77.08414256,0.00015066,2]
[346499691,1735009832626,-274.11960328,0.00015066,2]
[346499692,1735009832689,150.0,0.0001499,2]
[346499693,1735009832761,150.0,0.00014993,2]
[346499694,1735009832829,150.0,0.00014985,2]
[346499700,1735009833124,150.0,0.00014981,2]
[346499701,1735009833233,150.0,0.00014999,2]
[346499702,1735009833297,150.0,0.00014976,2]
[346499703,1735009838198,-150.0,0.0001504,2]
[346499704,1735009838207,-150.0,0.00015043,2]
[346499705,1735009838217,-150.0,0.00015043,2]
[346499706,1735009838226,-150.0,0.00015044,2]
[346499707,1735009838235,-30.0,0.00015044,2]
[346499708,1735009838247,-120.0,0.00015044,2]
[346499709,1735009838255,-150.0,0.00015056,2]
[346499710,1735009838265,-1301.26625416,0.00015066,2]
[346499711,1735009838276,-1386.64,0.00015066,2]
[346499712,1735009838286,-2104.54,0.00015066,2]
[346499713,1735009838295,-2432.45,0.00015066,2]
[346499714,1735009838304,-5502.0,0.00015066,2]
[346499715,1735009838314,-1187.47,0.00015066,2]
[346499716,1735009838323,-1399.93,0.00015066,2]
[346499717,1735009838332,-1229.91,0.00015066,2]
[346499718,1735009838341,-3187.79420636,0.00015066,2]
[346499719,1735009838488,-951.68579364,0.00015066,2]
[346499720,1735009838497,-13855.03,0.00015066,2]
[346499721,1735009838506,-981.31,0.00015066,2]
[346499722,1735009838515,-500.0,0.00015066,2]
[346499723,1735009838526,-1461.28,0.00015066,2]
[346499724,1735009838536,-500.0,0.00015066,2]
[346499725,1735009838545,-685.22,0.00015066,2]
[346499726,1735009838555,-519.64,0.00015066,2]
[346499727,1735009838564,-500.0,0.00015066,2]
[346499728,1735009838574,-1747.9209,0.00015067,2]
[346499729,1735009838583,-60250.10596604,0.00015067,2]
[346499730,1735009838592,-1168.27,0.00015067,2]
[346499731,1735009838601,-500.0,0.00015067,2]
[346499732,1735009838611,-500.0,0.00015067,2]
[346499733,1735009838620,-1435.87,0.00015067,2]
[346499734,1735009838629,-500.0,0.00015067,2]
[346499735,1735009838638,-661.41,0.00015067,2]
[346499736,1735009838648,-500.0,0.00015067,2]
[346499737,1735009838657,-505.76782176,0.00015067,2]
[346499738,1735009838665,-500.0,0.00015067,2]
[346499739,1735009838674,-637.05207621,0.00015067,2]
[346499740,1735009838683,-500.0,0.00015067,2]
[346499741,1735009838692,-500.0,0.00015067,2]
[346499742,1735009838701,-629.35,0.00015067,2]
[346499743,1735009838710,-500.0,0.00015067,2]
[346499744,1735009838719,-500.0,0.00015067,2]
[346499745,1735009838728,-500.0,0.00015067,2]
[346499746,1735009838737,-500.0,0.00015067,2]
[346499747,1735009838747,-500.0,0.00015067,2]
[346499748,1735009838755,-745.09,0.00015067,2]
[346499749,1735009838765,-502.43057978,0.00015067,2]
[346499750,1735009838774,-500.0,0.00015067,2]
[346499751,1735009838784,-500.0,0.00015067,2]
[346499752,1735009838793,-500.0,0.00015067,2]
[346499753,1735009838803,-540.99,0.00015067,2]
[346499754,1735009838812,-500.0,0.00015067,2]
[346499755,1735009838821,-500.0,0.00015067,2]
[346499756,1735009838831,-500.0,0.00015067,2]
[346499757,1735009838840,-500.0,0.00015067,2]
[346499758,1735009838849,-650.47,0.00015067,2]
[346499759,1735009838859,-500.0,0.00015067,2]
[346499760,1735009838868,-500.0,0.00015067,2]
[346499761,1735009838877,-500.0,0.00015067,2]
[346499762,1735009838887,-500.0,0.00015067,2]
[346499763,1735009838896,-500.0,0.00015067,2]
[346499764,1735009838906,-500.0,0.00015067,2]
[346499765,1735009838915,-500.0,0.00015067,2]
[346499766,1735009838925,-500.0,0.00015067,2]
[346499768,1735009838935,-500.0,0.00015067,2]
[346499770,1735009838944,-500.0,0.00015067,2]
[346499772,1735009838954,-500.0,0.00015067,2]
[346499774,1735009838963,-423.1913323,0.00015067,2]
[346499776,1735009838972,-533.25,0.00015067,2]
[346499778,1735009838981,-500.0,0.00015067,2]
[346499780,1735009838992,-500.0,0.00015067,2]
[346499782,1735009839001,-615.29054074,0.00015067,2]
[346499784,1735009839010,-665.96,0.00015067,2]
[346499786,1735009839019,-500.0,0.00015067,2]
[346499788,1735009839029,-500.0,0.00015067,2]
[346499790,1735009839038,-633.80265014,0.00015067,2]
[346499791,1735009839048,-500.0,0.00015067,2]
[346499793,1735009839058,-500.0,0.00015067,2]
[346499795,1735009839068,-500.0,0.00015067,2]
[346499797,1735009839078,-500.0,0.00015067,2]
[346499799,1735009839088,-838.35,0.00015067,2]
[346499801,1735009839097,-500.0,0.00015067,2]
[346499803,1735009839107,-500.0,0.00015067,2]
[346499805,1735009839119,-500.0,0.00015067,2]
[346499807,1735009839129,-500.0,0.00015067,2]
[346499809,1735009839138,-614.0243338,0.00015067,2]
[346499811,1735009839148,-500.0,0.00015067,2]
[346499813,1735009839159,-500.0,0.00015067,2]
[346499815,1735009839168,-500.0,0.00015067,2]